fUSD/lending_fUSD_20240825
["ID","MTS","AMOUNT","RATE_DAILY","PERIOD"]
[335935312,1724620276060,1000.082606,0.00027,120]
[335935313,1724620283617,349.19,9.266e-05,2]
[335935314,1724620318679,1000.082606,0.00025,62]
[335935315,1724620321776,1000.082606,0.00025,63]
[335935316,1724620325122,1000.082606,0.00025,64]
[335935317,1724620328194,1000.082606,0.00025,65]
[335935318,1724620333012,1000.082606,0.00025,69]
[335935319,1724620337645,1000.082606,0.00025,70]
[335935320,1724620340992,1000.082606,0.00025,71]
[335935321,1724620344217,1000.082606,0.00025,72]
[335935322,1724620357399,1000.082606,0.00025,76]
[335935323,1724620360788,1000.082606,0.00025,77]
[335935324,1724620364204,1000.082606,0.00025,78]
[335935325,1724620378218,-667.06663495,0.00018,30]
[335935326,1724620378247,-2329.03,0.00021589,30]
[335935327,1724620378285,-2329.03,0.0002475,30]
[335935328,1724620378311,-2649.02,0.000249,31]
[335935329,1724620378336,-2649.02,0.000249,31]
[335935330,1724620378360,-2649.02,0.000249,31]
[335935331,1724620378386,-2649.02,0.000249,31]
[335935332,1724620378410,-2649.02,0.000249,31]
[335935333,1724620378435,-2649.02,0.000249,31]
[335935334,1724620378459,-2649.02,0.000249,31]
[335935335,1724620378484,-2649.02,0.000249,31]
[335935336,1724620378508,-2649.02,0.000249,31]
[335935337,1724620378532,-2649.02,0.000249,31]
[335935338,1724620378557,-2649.02,0.000249,31]
[335935339,1724620378581,-2649.02,0.000249,31]
[335935340,1724620378605,-2649.02,0.000249,31]
[335935341,1724620378632,-2649.02,0.000249,31]
[335935342,1724620378660,-2649.02,0.000249,31]
[335935343,1724620378684,-2649.02,0.000249,31]
[335935344,1724620378712,-309.44632513,0.00025275,90]
[335935345,1724620378740,-1033.13471685,0.00027,30]
[335935346,1724620378765,-2649.02,0.00027,31]
[335935347,1724620378792,-2649.02,0.00027,31]
[335935348,1724620378818,-2649.02,0.00027,31]
[335935349,1724620378844,-2649.02,0.00027,31]
[335935350,1724620378870,-2649.02,0.00027,31]
[335935351,1724620378894,-2649.02,0.00027,31]
[335935352,1724620378918,-2649.02,0.00027,31]
[335935353,1724620378941,-2649.02,0.00027,31]
[335935354,1724620378965,-2649.02,0.00027,31]
[335935355,1724620378989,-2649.02,0.00027,31]
[335935356,1724620379013,-2649.02,0.00027,31]
[335935357,1724620379037,-2649.02,0.00027,31]
[335935358,1724620379063,-2649.02,0.00027,31]
[335935359,1724620379087,-2649.02,0.00027,31]
[335935360,1724620379110,-2649.02,0.00027,31]
[335935361,1724620379134,-2649.02,0.00027,31]
[335935362,1724620379157,-2649.02,0.00027,31]
[335935363,1724620379182,-2649.02,0.00027,31]
[335935364,1724620379207,-2649.02,0.00027,31]
[335935365,1724620379231,-2649.02,0.00027,31]
[335935366,1724620379255,-2649.02,0.00027,31]
[335935367,1724620379279,-2649.02,0.00027,31]
[335935368,1724620379302,-2649.02,0.00027,31]
[335935369,1724620379326,-2649.02,0.00027,31]
[335935370,1724620379368,-800.0,0.00027014,120]
[335935371,1724620379395,-2000.0,0.00027397,30]
[335935372,1724620379420,-2000.0,0.00027397,30]
[335935373,1724620379443,-2000.0,0.00027397,30]
[335935374,1724620379466,-2000.0,0.00027397,30]
[335935375,1724620379488,-2000.0,0.00027397,30]
[335935376,1724620379512,-2000.0,0.00027397,30]
[335935377,1724620379534,-2000.0,0.00027397,30]
[335935378,1724620379557,-2000.0,0.00027397,30]
[335935379,1724620379580,-2000.0,0.00027397,30]
[335935380,1724620379603,-2000.0,0.00027397,30]
[335935381,1724620379625,-2000.0,0.00027397,30]
[335935382,1724620379648,-2000.0,0.00027397,30]
[335935383,1724620379670,-2000.0,0.00027397,30]
[335935384,1724620379694,-2000.0,0.00027397,30]
[335935385,1724620379717,-2000.0,0.00027397,30]
[335935386,1724620379739,-2000.0,0.00027397,30]
[335935387,1724620379762,-2000.0,0.00027397,30]
[335935388,1724620379784,-2000.0,0.00027397,30]
[335935389,1724620379806,-2000.0,0.00027397,30]
[335935390,1724620379839,-952.07254348,0.00027397,30]
[335935391,1724620379866,-200.0,0.00027397,60]
[335935392,1724620379892,-294.04143,0.00027459,120]
[335935393,1724620379916,-200.0,0.00027608,120]
[335935394,1724620379940,-2329.03,0.00027912,30]
[335935395,1724620379964,-500.0,0.00028059,120]
[335935396,1724620379989,-150.0,0.00028109,120]
[335935397,1724620380014,-150.0,0.00028332,120]
[335935398,1724620380039,-500.0,0.00028659,120]
[335935399,1724620380064,-150.0,0.00028668,120]
[335935400,1724620380089,-2100.46259144,0.00028767,120]
[335935401,1724620380113,-150.0,0.00028857,120]
[335935402,1724620380137,-150.0,0.00028987,120]
[335935403,1724620380161,-1800.0,0.00029,30]
[335935404,1724620380190,-2649.02,0.000292,31]
[335935405,1724620380216,-2649.02,0.000292,31]
[335935406,1724620380241,-2649.02,0.000292,31]
[335935407,1724620380267,-2649.02,0.000292,31]
[335935408,1724620380293,-2649.02,0.000292,31]
[335935409,1724620380319,-2649.02,0.000292,31]
[335935410,1724620380345,-2649.02,0.000292,31]
[335935411,1724620380370,-2649.02,0.000292,31]
[335935412,1724620380396,-2649.02,0.000292,31]
[335935413,1724620380422,-2649.02,0.000292,31]
[335935414,1724620380448,-2649.02,0.000292,31]
[335935415,1724620380473,-2649.02,0.000292,31]
[335935416,1724620380499,-2649.02,0.000292,31]
[335935417,1724620380524,-2649.02,0.000292,31]
[335935418,1724620380549,-2649.02,0.000292,31]
[335935419,1724620380720,-2649.02,0.000292,31]
[335935420,1724620380748,-2649.02,0.000292,31]
[335935421,1724620380773,-2649.02,0.000292,31]
[335935422,1724620380798,-2649.02,0.000292,31]
[335935423,1724620380822,-2649.02,0.000292,31]
[335935424,1724620380847,-2649.02,0.000292,31]
[335935425,1724620380871,-2649.02,0.000292,31]
[335935426,1724620380896,-2649.02,0.000292,31]
[335935427,1724620380920,-2649.02,0.000292,31]
[335935428,1724620380948,-150.0,0.00029212,120]
[335935429,1724620380971,-150.0,0.0002923,120]
[335935430,1724620380994,-507.633439,0.0002924,120]
[335935431,1724620381017,-150.0,0.00029326,120]
[335935432,1724620381054,-150.0,0.00029453,120]
[335935433,1724620381077,-500.0,0.00029601,120]
[335935434,1724620381101,-500.0,0.0002984,120]
[335935435,1724620381123,-200.0,0.0002984,120]
[335935436,1724620381146,-150.0,0.00029866,120]
[335935437,1724620381171,-658.29043751,0.0003,30]
[335935438,1724620381196,-151.0,0.0003,120]
[335935439,1724620381218,-151.0,0.0003,120]
[335935440,1724620381240,-199.999999,0.0003,30]
[335935441,1724620381263,-1800.0,0.0003,31]
[335935442,1724620381286,-150.0,0.00030052,120]
[335935443,1724620381309,-200.0,0.00030137,60]
[335935444,1724620381332,-2110.0,0.00030377,30]
[335935445,1724620381355,-150.0,0.00030487,120]
[335935446,1724620381380,-150.0,0.00030532,120]
[335935447,1724620381405,-548.0,0.00030613,30]
[335935448,1724620381430,-150.0,0.00030681,120]
[335935449,1724620381453,-150.216441,0.000308,60]
[335935450,1724620381477,-201.0,0.0003087,30]
[335935451,1724620381501,-2110.0,0.00030877,30]
[335935452,1724620381526,-210.0,0.0003088,30]
[335935453,1724620381549,-210.0,0.0003088,30]
[335935454,1724620381573,-150.216441,0.00030902,31]
[335935455,1724620381597,-151.0,0.00030959,120]
[335935456,1724620381621,-1800.0,0.00031,32]
[335935457,1724620381644,-2329.03,0.00031073,30]
[335935458,1724620381671,-150.0,0.00031124,120]
[335935459,1724620381695,-150.0,0.00031281,120]
[335935460,1724620381719,-2649.02,0.000313,31]
[335935461,1724620381743,-2649.02,0.000313,31]
[335935462,1724620381767,-2649.02,0.000313,31]
[335935463,1724620381792,-2649.02,0.000313,31]
[335935464,1724620381818,-2649.02,0.000313,31]
[335935465,1724620381845,-2649.02,0.000313,31]
[335935466,1724620381869,-2649.02,0.000313,31]
[335935467,1724620381895,-2649.02,0.000313,31]
[335935468,1724620381919,-2649.02,0.000313,31]
[335935469,1724620381944,-2649.02,0.000313,31]
[335935470,1724620381969,-2649.02,0.000313,31]
[335935471,1724620381994,-2649.02,0.000313,31]
[335935472,1724620382018,-2649.02,0.000313,31]
[335935473,1724620382042,-2649.02,0.000313,31]
[335935474,1724620382066,-2649.02,0.000313,31]
[335935475,1724620382091,-2649.02,0.000313,31]
[335935476,1724620382115,-2649.02,0.000313,31]
[335935477,1724620382140,-2649.02,0.000313,31]
[335935478,1724620382167,-2649.02,0.000313,31]
[335935479,1724620382192,-2649.02,0.000313,31]
[335935480,1724620382217,-2649.02,0.000313,31]
[335935481,1724620382243,-2649.02,0.000313,31]
[335935482,1724620382269,-2649.02,0.000313,31]
[335935483,1724620382297,-2649.02,0.000313,31]
[335935484,1724620382321,-2110.0,0.00031377,30]
[335935485,1724620382346,-500.0,0.00031443,120]
[335935486,1724620382371,-150.0,0.00031518,120]
[335935487,1724620382396,-144536.08242603,0.00031816,30]
[335935488,1724620382421,-150.0,0.00031858,120]
[335935489,1724620382445,-2110.0,0.00031877,30]
[335935490,1724620382468,-150.0,0.0003189,120]
[335935491,1724620382491,-151.0,0.00031918,120]
[335935492,1724620382517,-790.5479928,0.00032,120]
[335935493,1724620382542,-366.66666667,0.00032,120]
[335935494,1724620382566,-58833.57,0.00032,30]
[335935495,1724620382590,-1800.0,0.00032,33]
[335935496,1724620382615,-646.45,0.00032,30]
[335935497,1724620382640,-201.0,0.0003229,30]
[335935498,1724620382666,-210.0,0.000323,30]
[335935499,1724620382690,-210.0,0.000323,30]
[335935500,1724620382718,-150.0,0.00032373,120]
[335935501,1724620382744,-2110.0,0.00032377,30]
[335935502,1724620382770,-150.216441,0.000325,30]
[335935503,1724620382793,-4941.0,0.000327,35]
[335935504,1724620382817,-150.0,0.00032707,120]
[335935505,1724620382841,-3283.48566896,0.000328,41]
[335935506,1724620382867,-1061.00051292,0.000328,41]
[335935507,1724620382892,-150.216441,0.00032853,31]
[335935508,1724620382915,-2633.01,0.00032876,120]
[335935509,1724620382938,-2633.01,0.00032876,120]
[335935510,1724620382961,-2633.01,0.00032876,120]
[335935511,1724620382984,-2633.01,0.00032876,120]
[335935512,1724620383007,-2633.01,0.00032876,120]
[335935513,1724620383030,-2633.01,0.00032876,120]
[335935514,1724620383053,-2633.01,0.00032876,120]
[335935515,1724620383077,-2633.01,0.00032876,120]
[335935516,1724620383101,-2633.01,0.00032876,120]
[335935517,1724620383125,-2633.01,0.00032876,120]
[335935518,1724620383148,-2633.01,0.00032876,120]
[335935519,1724620383172,-2633.01,0.00032876,120]
[335935520,1724620383196,-2633.01,0.00032876,120]
[335935521,1724620383219,-2633.01,0.00032876,120]
[335935522,1724620383242,-2633.01,0.00032876,120]
[335935523,1724620383386,-2633.01,0.00032876,120]
[335935524,1724620383410,-2633.01,0.00032876,120]
[335935525,1724620383438,-2633.01,0.00032876,120]
[335935526,1724620383466,-2633.01,0.00032876,120]
[335935527,1724620383489,-2633.01,0.00032876,120]
[335935528,1724620383512,-2633.01,0.00032876,120]
[335935529,1724620383534,-2633.01,0.00032876,120]
[335935530,1724620383557,-2633.01,0.00032876,120]
[335935531,1724620383581,-2633.16659384,0.00032876,120]
[335935532,1724620383604,-200.0,0.00032877,60]
[335935533,1724620383628,-151.0,0.00032877,120]
[335935534,1724620383653,-2110.0,0.00032877,30]
[335935535,1724620383677,-500.0,0.00032877,30]
[335935536,1724620383704,-500.0,0.00032877,30]
[335935537,1724620383728,-500.0,0.00032877,30]
[335935538,1724620383751,-500.0,0.00032877,30]
[335935539,1724620383775,-500.0,0.00032877,30]
[335935540,1724620383798,-500.0,0.00032877,30]
[335935541,1724620383822,-500.0,0.00032877,30]
[335935542,1724620383846,-500.0,0.00032877,30]
[335935543,1724620383870,-500.0,0.00032877,30]
[335935544,1724620383894,-500.0,0.00032877,30]
[335935545,1724620383918,-500.0,0.00032877,30]
[335935546,1724620383942,-500.0,0.00032877,30]
[335935547,1724620383966,-445.42921943,0.00032877,30]
[335935548,1724620383991,-150.0,0.00032949,120]
[335935549,1724620384018,-50000.0,0.00033,33]
[335935550,1724620384042,-160.79828104,0.00033,120]
[335935551,1724620384066,-936.08340544,0.00033,30]
[335935552,1724620384090,-1000.0,0.00033,120]
[335935553,1724620384113,-2000.0,0.00033,30]
[335935554,1724620384137,-501.87499072,0.00033,90]
[335935555,1724620384160,-1800.0,0.00033,34]
[335935556,1724620384185,-4293.32,0.00033151,120]
[335935557,1724620384208,-16119.6,0.00033151,120]
[335935558,1724620384232,-150.0,0.00033258,120]
[335935559,1724620384255,-150.0,0.00033312,120]
[335935560,1724620384279,-150.0,0.00033339,120]
[335935561,1724620384304,-150.0,0.0003337,120]
[335935562,1724620384327,-2110.0,0.00033377,30]
[335935563,1724620384352,-1000.0,0.0003349,120]
[335935564,1724620384378,-2649.02,0.000335,31]
[335935565,1724620384403,-2649.02,0.000335,31]
[335935566,1724620384428,-2649.02,0.000335,31]
[335935567,1724620384453,-2649.02,0.000335,31]
[335935568,1724620384479,-2649.02,0.000335,31]
[335935569,1724620384506,-2649.02,0.000335,31]
[335935570,1724620384531,-2649.02,0.000335,31]
[335935571,1724620384558,-2649.02,0.000335,31]
[335935572,1724620384583,-2649.02,0.000335,31]
[335935573,1724620384609,-2649.02,0.000335,31]
[335935574,1724620384634,-2649.02,0.000335,31]
[335935575,1724620384662,-2649.02,0.000335,31]
[335935576,1724620384686,-633.37,0.00033561,120]
[335935577,1724620384712,-150.0,0.0003363,120]
[335935578,1724620384735,-150.0,0.00033637,120]
[335935579,1724620384760,-768.0,0.00033674,30]
[335935580,1724620384783,-150.0,0.00033675,120]
[335935581,1724620384808,-150.0,0.00033676,120]
[335935582,1724620384833,-201.0,0.0003372,30]
[335935583,1724620384857,-211.0,0.0003373,30]
[335935584,1724620384880,-210.0,0.0003373,30]
[335935585,1724620384904,-210.0,0.0003373,30]
[335935586,1724620384929,-150.0,0.00033733,120]
[335935587,1724620384952,-150.0,0.00033798,120]
[335935588,1724620384976,-151.0,0.00033836,120]
[335935589,1724620385000,-150.0,0.00033854,120]
[335935590,1724620385023,-2110.0,0.00033877,30]
[335935591,1724620385047,-150.0,0.00033919,120]
[335935592,1724620385071,-150.0,0.0003394,120]
[335935593,1724620385097,-50000.0,0.00034,34]
[335935594,1724620385120,-1900.7596771,0.00034,120]
[335935595,1724620385143,-2043.40518071,0.00034,30]
[335935596,1724620385166,-5000.0,0.00034,61]
[335935597,1724620385189,-1000.0,0.00034,120]
[335935598,1724620385211,-2023.69,0.00034,30]
[335935599,1724620385235,-249.99999901,0.00034,30]
[335935600,1724620385259,-1800.0,0.00034,35]
[335935601,1724620385282,-5993.52,0.00034,30]
[335935602,1724620385305,-150.0,0.00034012,120]
[335935603,1724620385330,-150.0,0.0003405,120]
[335935604,1724620385354,-150.216441,0.000342,60]
[335935605,1724620385378,-2329.03,0.00034234,30]
[335935606,1724620385401,-150.0,0.00034238,120]
[335935607,1724620385424,-633.37,0.00034246,120]
[335935608,1724620385449,-150.0,0.00034252,120]
[335935609,1724620385472,-500.0,0.00034295,120]
[335935610,1724620385494,-500.0,0.00034295,120]
[335935611,1724620385517,-500.0,0.00034295,120]
[335935612,1724620385539,-500.0,0.00034295,120]
[335935613,1724620385562,-500.0,0.00034295,120]
[335935614,1724620385585,-500.0,0.00034295,120]
[335935615,1724620385607,-500.0,0.00034295,120]
[335935616,1724620385631,-500.0,0.00034295,120]
[335935617,1724620385656,-500.0,0.00034295,120]
[335935618,1724620385682,-501.0,0.00034295,120]
[335935619,1724620385704,-500.0,0.00034295,120]
[335935620,1724620385726,-500.0,0.00034295,120]
[335935621,1724620385748,-500.0,0.00034295,120]
[335935622,1724620385772,-500.0,0.00034295,120]
[335935623,1724620385796,-500.0,0.00034295,120]
[335935624,1724620385820,-174.0,0.00034295,120]
[335935625,1724620385845,-3283.48566896,0.000343,41]
[335935626,1724620385871,-150.0,0.0003437,120]
[335935627,1724620386011,-2110.0,0.00034377,30]
[335935628,1724620386039,-2763.4018996,0.000345,120]
[335935629,1724620386065,-150.0,0.00034561,120]
[335935630,1724620386090,-150.0,0.00034671,120]
[335935631,1724620386115,-150.0,0.00034697,120]
[335935632,1724620386140,-150.0,0.00034702,120]
[335935633,1724620386164,-150.0,0.00034743,120]
[335935634,1724620386192,-151.0,0.00034795,120]
[335935635,1724620386216,-1499999.0,0.000348,60]
[335935636,1724620386239,-150.216441,0.00034804,31]
[335935637,1724620386264,-2110.0,0.00034877,30]
[335935638,1724620386289,-633.37,0.00034931,120]
[335935639,1724620386313,-150.0,0.00034931,120]
[335935640,1724620386338,-150.0,0.00034988,120]
[335935641,1724620386363,-150.0,0.00034991,120]
[335935642,1724620386391,-50000.0,0.00035,35]
[335935643,1724620386416,-286.28135,0.00035,120]
[335935644,1724620386440,-271.87917841,0.00035,30]
[335935645,1724620386462,-2341.42246961,0.00035,120]
[335935646,1724620386487,-761.06099854,0.00035,90]
[335935647,1724620386512,-200.0,0.00035,90]
[335935648,1724620386537,-850.0,0.00035,120]
[335935649,1724620386562,-150.0,0.00035,30]
[335935650,1724620386587,-2000.08677076,0.00035,120]
[335935651,1724620386611,-155.528996,0.00035,30]
[335935652,1724620386635,-155.528996,0.00035,30]
[335935653,1724620386664,-1800.0,0.00035,36]
[335935654,1724620386689,-1000.0,0.00035,120]
[335935655,1724620386716,-150.0,0.0003503,120]
[335935656,1724620386740,-150.0,0.00035075,120]
[335935657,1724620386764,-150.0,0.00035104,120]
[335935658,1724620386788,-211.0,0.0003515,30]
[335935659,1724620386811,-212.0,0.0003515,30]
[335935660,1724620386837,-210.0,0.0003515,30]
[335935661,1724620386861,-210.0,0.0003515,30]
[335935662,1724620386885,-201.0,0.0003515,30]
[335935663,1724620386909,-150.216441,0.0003525,30]
[335935664,1724620386933,-1219.09,0.00035377,30]
[335935665,1724620386958,-150.0,0.00035495,120]
[335935666,1724620386983,-633.37,0.00035616,120]
[335935667,1724620387008,-200.0,0.00035616,60]
[335935668,1724620387032,-150.0,0.00035619,120]
[335935669,1724620387057,-150.0,0.00035716,120]
[335935670,1724620387081,-150.0,0.0003572,120]
[335935671,1724620387106,-150.0,0.00035722,120]
[335935672,1724620387131,-151.0,0.00035753,120]
[335935673,1724620387155,-3283.48566896,0.000358,41]
[335935674,1724620387180,-150.0,0.00035888,120]
[335935675,1724620387216,-150.0,0.00035976,120]
[335935676,1724620387246,-50000.0,0.00036,36]
[335935677,1724620387270,-1000.0,0.00036,120]
[335935678,1724620387295,-3000.0,0.00036,120]
[335935679,1724620387318,-300.0,0.00036,120]
[335935680,1724620387341,-192.00791704,0.00036,120]
[335935681,1724620387365,-1102.87595207,0.00036,120]
[335935682,1724620387388,-6166.14837521,0.00036,120]
[335935683,1724620387411,-535.08217983,0.00036,120]
[335935684,1724620387440,-151.0,0.00036,120]
[335935685,1724620387463,-1800.0,0.00036,37]
[335935686,1724620387498,-150.0,0.00036024,120]
[335935687,1724620387529,-150.0,0.00036029,120]
[335935688,1724620387562,-5435.1,0.00036114,54]
[335935689,1724620387594,-150.0,0.00036176,120]
[335935690,1724620387627,-633.37,0.00036301,120]
[335935691,1724620387661,-150.0,0.00036377,120]
[335935692,1724620387694,-150.0,0.00036452,120]
[335935693,1724620387726,-150.0,0.00036465,120]
[335935694,1724620387759,-5001.82009,0.0003648,30]
[335935695,1724620387793,-150.0,0.00036497,120]
[335935696,1724620387828,-150.0,0.0003652,120]
[335935697,1724620387861,-150.0,0.00036553,120]
[335935698,1724620387893,-201.0,0.0003657,30]
[335935699,1724620387925,-211.0,0.0003658,30]
[335935700,1724620387959,-212.0,0.0003658,30]
[335935701,1724620387994,-210.0,0.0003658,30]
[335935702,1724620388026,-210.0,0.0003658,30]
[335935703,1724620388058,-1172.52734843,0.00036619,30]
[335935704,1724620388090,-1172.52734843,0.00036635,30]
[335935705,1724620388122,-1172.52734843,0.00036659,30]
[335935706,1724620388154,-1172.52734843,0.0003666,30]
[335935707,1724620388187,-1172.52734843,0.00036696,30]
[335935708,1724620388218,-151.0,0.00036712,120]
[335935709,1724620388250,-150.0,0.00036764,120]
[335935710,1724620388281,-4000.0,0.000368,120]
[335935711,1724620388311,-1500.0,0.0003689,120]
[335935712,1724620388341,-150.0,0.00036911,120]
[335935713,1724620388371,-633.37,0.00036986,120]
[335935714,1724620388401,-411.22399398,0.00036986,60]
[335935715,1724620388436,-50000.0,0.00037,37]
[335935716,1724620388467,-2141.0,0.00037,60]
[335935717,1724620388498,-2000.0,0.00037,120]
[335935718,1724620388528,-4668.26648128,0.00037,60]
[335935719,1724620388559,-1000.0,0.00037,120]
[335935720,1724620388589,-333.33333333,0.00037,120]
[335935721,1724620388620,-5000.0,0.00037,30]
[335935722,1724620388651,-866.54669001,0.00037,120]
[335935723,1724620388687,-1800.0,0.00037,38]
[335935724,1724620388719,-1075.0,0.00037042,30]
[335935725,1724620388751,-150.0,0.00037046,120]
[335935726,1724620388783,-150.0,0.00037179,120]
[335935727,1724620388813,-5463.51721332,0.000372,60]
[335935728,1724620388846,-3283.48566896,0.000373,41]
[335935729,1724620388879,-150.0,0.00037302,120]
[335935730,1724620388912,-150.0,0.00037386,120]
[335935731,1724620389064,-2329.03,0.00037395,30]
[335935732,1724620389102,-150.0,0.00037417,120]
[335935733,1724620389136,-200.06676819,0.00037473,120]
[335935734,1724620389170,-2100.0,0.00037478,31]
[335935735,1724620389203,-150.0,0.00037489,120]
[335935736,1724620389235,-4000.0,0.000375,120]
[335935737,1724620389267,-1000.0,0.000375,120]
[335935738,1724620389298,-86824.0,0.000375,40]
[335935739,1724620389330,-150.216441,0.000376,60]
[335935740,1724620389362,-150.0,0.00037608,120]
[335935741,1724620389394,-150.0,0.00037612,120]
[335935742,1724620389425,-633.37,0.00037671,120]
[335935743,1724620389457,-151.0,0.00037671,120]
[335935744,1724620389488,-59706.0,0.0003777,33]
[335935745,1724620389520,-150.0,0.0003785,120]
[335935746,1724620389553,-150.0,0.00037898,120]
[335935747,1724620389584,-5493.67642328,0.000379,30]
[335935748,1724620389615,-410.0,0.00037986,90]
[335935749,1724620389646,-410.0,0.00037996,90]
[335935750,1724620389678,-306.2005601,0.00037999,120]
[335935751,1724620389711,-1000.0,0.00037999,120]
[335935752,1724620389746,-50000.0,0.00038,38]
[335935753,1724620389780,-1000.0,0.00038,120]
[335935754,1724620389812,-1691.63111137,0.00038,30]
[335935755,1724620389844,-935.7292,0.00038,90]
[335935756,1724620389875,-3381.94142879,0.00038,30]
[335935757,1724620389907,-755.70816979,0.00038,120]
[335935758,1724620389940,-1000.41,0.00038,120]
[335935759,1724620389974,-400000.0,0.00038,30]
[335935760,1724620390008,-874885.87647232,0.00038,30]
[335935761,1724620390040,-4553.72827577,0.00038,120]
[335935762,1724620390072,-2242.08960967,0.00038,120]
[335935763,1724620390102,-10800.0,0.00038,45]
[335935764,1724620390134,-211.0,0.00038,30]
[335935765,1724620390166,-212.0,0.00038,30]
[335935766,1724620390198,-224.20896097,0.00038,120]
[335935767,1724620390230,-210.0,0.00038,30]
[335935768,1724620390263,-210.0,0.00038,30]
[335935769,1724620390295,-210.0,0.00038,30]
[335935770,1724620390329,-150.216441,0.00038,30]
[335935771,1724620390365,-155.528996,0.00038,38]
[335935772,1724620390397,-201.0,0.00038,30]
[335935773,1724620390433,-918.03332712,0.00038002,40]
[335935774,1724620390466,-150.0,0.00038003,120]
[335935775,1724620390499,-150.0,0.00038016,120]
[335935776,1724620390531,-150.0,0.00038026,120]
[335935777,1724620390564,-150.0,0.00038135,120]
[335935778,1724620390598,-150.0,0.00038144,120]
[335935779,1724620390629,-150.0,0.0003823,120]
[335935780,1724620390660,-150.0,0.00038319,120]
[335935781,1724620390704,-150.0,0.00038326,120]
[335935782,1724620390736,-633.37,0.00038356,120]
[335935783,1724620390769,-248.614899,0.00038356,60]
[335935784,1724620390800,-5914.85223521,0.000384,33]
[335935785,1724620390832,-153.43970751,0.000384,33]
[335935786,1724620390863,-150.0,0.00038608,120]
[335935787,1724620390896,-200.0,0.00038611,120]
[335935788,1724620390928,-151.0,0.0003863,120]
[335935789,1724620390964,-150.0,0.00038752,120]
[335935790,1724620390995,-3283.48566896,0.000388,41]
[335935791,1724620391029,-917440.5648509,0.000388,60]
[335935792,1724620402842,-1330.87,0.00021589,30]
[335935793,1724620402892,-1330.87,0.0002475,30]
[335935794,1724620402959,-1330.87,0.00027912,30]
[335935795,1724620403014,-1330.87,0.00031073,30]
[335935796,1724620403050,-800.0,0.00032959,120]
[335935797,1724620403085,-4940.28,0.00034,30]
[335935798,1724620403120,-1330.87,0.00034234,30]
[335935799,1724620403167,-1330.87,0.00037395,30]
[335935800,1724620403206,-30804.35004844,0.000388,60]
[335935801,1724620403237,-351160.04309254,0.0003888,90]
[335935802,1724620403268,-734.0457269,0.000389,30]
[335935803,1724620403299,-10000.0,0.000389,35]
[335935804,1724620403331,-150.0,0.00038909,120]
[335935805,1724620403362,-150.0,0.00038938,120]
[335935806,1724620403396,-50000.0,0.00039,39]
[335935807,1724620403431,-50000.0,0.00039,39]
[335935808,1724620403463,-160.0,0.00039,30]
[335935809,1724620403494,-500.0,0.00039,120]
[335935810,1724620403525,-1000.0,0.00039,120]
[335935811,1724620403556,-633.37,0.00039041,120]